bitfinex-derivatives/quotes_ETHF0:USTF0_20241005
["timestamp","ask_amount","ask_price","bid_price","bid_amount"]
[1728170429170,3.2078,2414.7,2414.6,5.95236522]
[1728170431867,3.2078,2414.7,2414.6,5.41874762]
[1728170432068,3.2078,2414.7,2414.6,5.95234857]
[1728170432266,3.2078,2414.7,2414.6,5.41874762]
[1728170432867,2.74246,2414.9,2414.6,5.41874762]
[1728170433776,0.33127,2414.8,2414.6,5.41874762]
[1728170437265,2.4112,2414.9,2414.6,5.08744762]
[1728170437465,1.52128,2414.7,2414.6,5.08744762]
[1728170440674,1.52128,2414.7,2414.5,1.1409]
[1728170440675,4.72908,2414.7,2414.5,1.1409]
[1728170440867,4.72908,2414.7,2414.6,0.3932]
[1728170443272,1.52128,2414.7,2414.6,0.3932]
[1728170444176,4.72908,2414.7,2414.6,0.3932]
[1728170444569,1.52128,2414.7,2414.6,0.3932]
[1728170445469,4.72908,2414.7,2414.6,0.3932]
[1728170447176,4.3978,2414.7,2414.6,0.7245]
[1728170447477,4.72908,2414.7,2414.6,0.7245]
[1728170448171,4.72908,2414.7,2414.6,0.3932]
[1728170450576,8.5394,2414.7,2414.2,0.096]
[1728170450879,1.52133,2414.4,2414.3,5.68065371]
[1728170451076,4.72913,2414.4,2414.3,5.14709869]
[1728170452673,4.72913,2414.4,2414.3,5.47843869]
[1728170453077,4.72913,2414.4,2414.2,0.7849]
[1728170453078,4.72913,2414.4,2414.2,1.11624]
[1728170453278,0.4144,2414.3,2414.2,1.11624]
[1728170453481,0.4144,2414.3,2414.2,1.64982594]
[1728170454776,0.4144,2414.3,2413.9,0.89321228]
[1728170455082,0.4144,2414.3,2414.1,5.48354728]
[1728170455083,1.19,2414.2,2414.1,5.48354728]
[1728170455280,1.19,2414.2,2414.1,6.01714596]
[1728170455479,1.19,2414.2,2414.1,1.25844868]
[1728170455785,1.19,2414.2,2414.1,5.94864178]
[1728170456286,1.19,2414.2,2414.1,5.55515178]
[1728170456483,1.997,2414.2,2414.1,5.55515178]
[1728170456681,2.32835,2414.2,2414.1,5.22379178]
[1728170456886,1.997,2414.2,2414.1,0.53359868]
[1728170457186,1.997,2414.2,2414.1,0.86495868]
[1728170457779,2.32835,2414.2,2414.1,0.53359868]
[1728170457984,0.33139,2413.9,2413.7,0.84951]
[1728170458188,0.33139,2413.9,2413.7,0.75351]
[1728170458189,1.6062,2413.8,2413.7,0.75351]
[1728170458381,1.6062,2413.8,2413.7,1.28721066]
[1728170458588,1.6062,2413.8,2413.7,9.95344932]
[1728170458789,1.6062,2413.8,2413.7,5.81024932]
[1728170459486,1.6062,2413.8,2413.7,5.38814932]
[1728170459687,1.6062,2413.8,2413.7,5.05673932]
[1728170459882,1.6062,2413.8,2413.7,4.52303866]
[1728170460079,2.4117,2413.8,2413.7,4.52303866]
[1728170460681,1.6062,2413.8,2413.7,4.85445866]
[1728170461191,1.6062,2413.8,2413.7,5.3883473]
[1728170461383,1.6062,2413.8,2413.7,4.85445866]
[1728170462683,1.6062,2413.8,2413.7,4.52303866]
[1728170462885,1.6062,2413.8,2413.7,4.85445866]
[1728170463693,1.6062,2413.8,2413.7,4.52303866]
[1728170463887,1.6062,2413.8,2413.7,4.85445866]
[1728170464385,1.6062,2413.8,2413.7,4.52303866]
[1728170464584,1.6062,2413.8,2413.5,0.096]
[1728170464585,5.7494,2413.8,2413.5,0.096]
[1728170464788,1.19,2413.6,2413.3,0.33147]
[1728170464981,1.19,2413.4,2413.3,0.33147]
[1728170465182,1.19,2413.4,2413.3,5.19689924]
[1728170466189,2.3999,2413.5,2413.4,0.33146]
[1728170466593,2.0083,2413.5,2413.4,0.33146]
[1728170466783,2.0083,2413.5,2413.4,0.73306]
[1728170466784,1.6023,2413.5,2413.4,0.73306]
[1728170466984,1.6023,2413.5,2413.4,1.12136]
[1728170467585,1.19,2413.5,2413.4,5.55653349]
[1728170473501,1.19,2413.5,2413.4,4.76663349]
[1728170474994,1.19,2413.5,2413.4,0.33146]
[1728170478402,1.19,2413.5,2413.2,0.3931]
[1728170478598,1.19,2413.5,2413.3,0.33147]
[1728170478599,0.4141,2413.4,2413.3,0.33147]
[1728170478902,1.6041,2413.4,2413.3,4.93260882]
[1728170481007,2.0036,2413.5,2413.4,0.33146]
[1728170481200,2.0036,2413.5,2413.4,1.12146]
[1728170481702,1.19,2413.5,2413.4,1.12146]
[1728170483704,1.6049,2413.5,2413.4,1.12146]
[1728170485808,1.19,2413.5,2413.4,1.12146]
[1728170486113,3.2078,2413.6,2413.5,0.33145]
[1728170486417,3.2078,2413.6,2413.5,4.66235224]
[1728170486617,3.2078,2413.6,2413.5,5.08795224]
[1728170489816,1.19,2413.7,2413.5,4.75650224]
[1728170490008,1.19,2413.7,2413.6,0.33143]
[1728170490318,1.19,2413.7,2413.6,4.71355156]
[1728170490911,5.7508,2413.7,2413.0,5.21443145]
[1728170491111,1.15174,2413.6,2413.4,0.33146]
[1728170492010,0.8203,2413.6,2413.2,0.3974]
[1728170492212,1.19,2413.4,2413.3,0.33147]
[1728170492515,1.19,2413.4,2413.3,5.06529669]
[1728170493613,1.19,2413.5,2413.4,0.33146]
[1728170493828,0.4176,2413.7,2413.6,0.33143]
[1728170493829,1.6076,2413.7,2413.6,0.33143]
[1728170496921,4.8154,2413.7,2413.6,0.33143]
[1728170498222,4.8154,2413.7,2413.6,0.86528403]
[1728170498720,4.8154,2413.7,2413.6,5.17831065]
[1728170499322,4.8154,2413.7,2413.6,4.64445662]
[1728170499517,4.8154,2413.7,2413.6,5.17844645]
[1728170502213,1.6076,2413.7,2413.6,5.17844645]
[1728170502424,4.8154,2413.7,2413.6,5.17844645]
[1728170502626,4.8154,2413.7,2413.6,4.64445662]
[1728170502821,4.8154,2413.7,2413.6,5.17897743]
[1728170503618,4.8154,2413.7,2413.6,0.86595081]
[1728170504325,1.6076,2413.7,2413.6,1.38410059]
[1728170504717,4.8154,2413.7,2413.6,1.38410059]
[1728170505023,1.6076,2413.7,2413.6,1.38410059]
[1728170505224,4.8154,2413.7,2413.6,1.38410059]
[1728170505728,1.6076,2413.7,2413.6,1.38410059]
[1728170506019,4.8154,2413.7,2413.6,0.33143]
[1728170506225,4.8154,2413.7,2413.6,1.38445823]
[1728170508926,1.6076,2413.7,2413.6,1.38445823]
[1728170509130,1.6076,2413.7,2413.6,0.84957984]
[1728170509429,1.6076,2413.7,2413.6,1.38450686]
[1728170509729,0.4176,2413.7,2413.6,1.38450676]
[1728170509932,4.8154,2413.7,2413.6,1.38450676]
[1728170512426,4.8154,2413.7,2413.6,0.86640018]
[1728170512616,4.8154,2413.7,2413.6,1.38455156]
[1728170513429,1.6076,2413.7,2413.6,1.38455156]
[1728170513623,4.8154,2413.7,2413.6,1.38455156]
[1728170515630,4.8154,2413.7,2413.6,0.33143]
[1728170516029,4.8154,2413.7,2413.6,1.38455214]
[1728170518933,1.6076,2413.7,2413.6,0.33143]
[1728170519137,1.6076,2413.7,2413.6,0.8664018]
[1728170519434,1.6076,2413.7,2413.6,1.38455624]
[1728170519619,4.8154,2413.7,2413.6,1.38455624]
[1728170521534,4.8154,2413.7,2413.6,1.38455682]
[1728170521726,1.6076,2413.7,2413.6,1.38455682]
[1728170522128,4.8154,2413.7,2413.6,1.38455682]
[1728170525437,1.6076,2413.7,2413.6,1.38455682]
[1728170525634,4.8154,2413.7,2413.6,1.38455682]
[1728170526240,1.6076,2413.7,2413.6,1.38455682]
[1728170526547,4.8154,2413.7,2413.6,1.38455682]
[1728170527831,4.8154,2413.7,2413.6,1.38462551]
[1728170528838,1.6076,2413.7,2413.6,1.38462551]
[1728170529140,4.8154,2413.7,2413.6,1.38462551]
[1728170529342,1.6076,2413.7,2413.6,2.46647696]
[1728170529532,4.8154,2413.7,2413.6,2.46647696]
[1728170529738,4.8154,2413.7,2413.6,1.38462551]
[1728170529941,4.8154,2413.7,2413.6,2.46647696]
[1728170530141,4.8154,2413.7,2413.6,1.38462551]
[1728170530338,4.8154,2413.7,2413.6,2.46647696]
[1728170530645,4.8154,2413.7,2413.6,3.00758257]
[1728170530845,1.6076,2413.7,2413.6,3.00758257]
[1728170531032,1.6076,2413.7,2413.6,1.41328145]
[1728170531233,1.6076,2413.7,2413.6,2.48953668]
[1728170531447,1.6076,2413.7,2413.6,3.00767493]
[1728170532552,1.6076,2413.7,2413.6,3.83668969]
[1728170532750,1.6076,2413.7,2413.6,3.00767493]
[1728170535654,1.6076,2413.7,2413.6,3.83669587]
[1728170536351,1.6076,2413.7,2413.6,3.83668859]
[1728170537055,1.6076,2413.7,2413.6,1.41328145]
[1728170538254,4.8154,2413.7,2413.6,1.41328145]
[1728170539158,4.3978,2413.7,2413.6,7.20107403]
[1728170539356,3.2078,2413.7,2413.6,8.70698293]
[1728170539557,3.2078,2413.7,2413.6,10.05414862]
[1728170539752,2.98851,2413.9,2413.6,9.72271862]
[1728170539954,2.98851,2413.9,2413.7,1.38484546]
[1728170539955,2.69951,2413.9,2413.7,1.38484546]
[1728170540157,2.69951,2413.9,2413.8,1.05343546]
[1728170540357,5.90731,2413.9,2413.8,1.05343546]
[1728170540650,5.90731,2413.9,2413.8,0.53529481]
[1728170540856,5.90731,2413.9,2413.8,1.05343353]
[1728170541155,2.69951,2413.9,2413.8,0.53529481]
[1728170541355,2.69951,2413.9,2413.8,1.0534334]
[1728170541555,5.90731,2413.9,2413.8,1.0534334]
[1728170541961,2.69951,2413.9,2413.8,1.0534334]
[1728170542258,5.90731,2413.9,2413.8,1.0534334]
[1728170543553,2.69951,2413.9,2413.8,0.53536103]
[1728170543852,5.90731,2413.9,2413.8,1.05349962]
[1728170544651,5.90731,2413.9,2413.8,1.38490962]
[1728170545149,2.69951,2413.9,2413.8,1.38490962]
[1728170545349,2.69951,2413.9,2413.8,1.90304649]
[1728170545757,5.90731,2413.9,2413.8,1.90304649]
[1728170546747,5.90731,2413.9,2413.8,1.38490876]
[1728170547157,5.90731,2413.9,2413.8,1.90304664]
[1728170548256,5.90731,2413.9,2413.8,1.57163664]
[1728170548856,5.90731,2413.9,2413.8,1.05349876]
[1728170549051,2.69951,2413.9,2413.8,1.05349939]
[1728170550160,5.90731,2413.9,2413.8,0.53536103]
[1728170550359,5.90731,2413.9,2413.8,1.05349937]
[1728170551060,2.69951,2413.9,2413.6,1.08185145]
[1728170551260,2.69951,2413.9,2413.8,0.86676287]
[1728170551761,5.5759,2413.9,2413.8,0.86676287]
[1728170551956,5.5759,2413.9,2413.8,1.26246287]
[1728170552162,5.5759,2413.9,2413.8,1.78060139]
[1728170554560,5.5759,2413.9,2413.8,1.24524852]
[1728170554760,5.5759,2413.9,2413.8,0.72711]
[1728170554959,5.5759,2413.9,2413.8,1.26239553]
[1728170555267,5.5759,2413.9,2413.8,1.78051161]
[1728170556859,2.3681,2413.9,2413.8,1.78051161]
[1728170557759,6.84189,2413.9,2413.8,1.05340161]
[1728170558064,6.84189,2413.9,2413.8,0.53528553]
[1728170558266,2.69949,2413.9,2413.8,0.53528553]
[1728170558568,7.81889,2413.9,2413.8,0.53528553]
[1728170559961,3.67649,2413.9,2413.8,0.53528553]
[1728170561760,3.67649,2413.9,2413.5,1.80729145]
[1728170561761,3.3451,2413.9,2413.5,1.80729145]
[1728170561962,1.19,2413.6,2413.5,1.80729145]
[1728170562369,1.19,2413.6,2413.5,8.01916146]
[1728170564370,1.19,2413.6,2413.5,8.55335598]
[1728170564967,1.19,2413.6,2413.5,10.05893453]
[1728170565370,1.19,2413.6,2413.5,8.55335598]
[1728170565559,1.19,2413.6,2413.5,8.55332784]
[1728170566166,3.2078,2413.8,2413.7,0.33142]
[1728170566361,0.3982,2413.9,2413.7,1.05337904]
[1728170566569,0.3982,2413.9,2413.8,2.23138904]
[1728170567863,0.72959,2413.9,2413.8,2.62148904]
[1728170568167,0.3982,2413.9,2413.8,2.62148904]
[1728170569173,0.72959,2413.9,2413.8,2.62147918]
[1728170570566,0.3982,2413.9,2413.8,2.62147918]
[1728170572173,0.3982,2413.9,2413.8,2.29006918]
[1728170572475,0.72959,2413.9,2413.8,1.75481249]
[1728170572770,0.72959,2413.9,2413.8,2.62136907]
[1728170576062,0.72959,2413.9,2413.8,2.1032541]
[1728170576269,0.72959,2413.9,2413.8,2.62136762]
[1728170577166,0.3982,2413.9,2413.8,2.62136762]
[1728170579377,0.3982,2413.9,2413.8,2.62132289]
[1728170581673,0.3982,2413.9,2413.8,2.08622352]
[1728170581979,0.3982,2413.9,2413.8,2.62130131]
[1728170589672,0.3982,2413.9,2413.8,2.62130077]
[1728170591382,3.2078,2414.0,2413.9,0.33139]
[1728170591580,3.2078,2414.0,2413.9,3.82931297]
[1728170591779,3.2078,2414.0,2413.9,9.69901388]
[1728170592481,3.2078,2414.0,2413.9,10.98909063]
[1728170592984,3.2078,2414.0,2413.9,12.33602934]
[1728170593285,4.72918,2414.0,2413.9,5.93570162]
[1728170593585,5.54788,2414.0,2413.9,0.53488206]
[1728170595880,5.54788,2414.0,2413.8,0.3314]
[1728170596087,0.3906,2413.9,2413.8,0.3314]
[1728170596383,3.5984,2413.9,2413.8,1.38426424]
[1728170597287,0.3906,2413.9,2413.8,1.38426424]
[1728170598380,0.3906,2413.9,2413.8,0.86617365]
[1728170598578,0.3906,2413.9,2413.8,1.3842637]
[1728170602589,0.3906,2413.9,2413.8,0.84949005]
[1728170602790,0.3906,2413.9,2413.8,1.38418657]
[1728170603796,0.3906,2413.9,2413.8,0.86609652]
[1728170603991,0.3906,2413.9,2413.8,1.68509652]
[1728170604196,5.2165,2414.0,2413.8,1.68509652]
[1728170604197,4.3978,2414.0,2413.9,0.33139]
[1728170604401,4.3978,2414.0,2413.9,0.86608652]
[1728170606201,4.3978,2414.0,2413.9,0.8660955]
[1728170608192,1.19,2414.0,2413.9,0.8660955]
[1728170608397,3.2078,2414.0,2413.9,0.8660955]
[1728170608599,3.4968,2414.3,2413.9,21.99248241]
[1728170608796,3.4968,2414.6,2414.5,0.33131]
[1728170609106,3.2078,2414.6,2414.5,5.69686343]
[1728170609301,3.2078,2414.6,2414.5,5.17890505]
[1728170609509,3.2078,2414.6,2414.5,5.69684415]
[1728170609705,3.2078,2414.6,2414.5,9.83844415]
[1728170610308,3.2078,2414.6,2414.5,9.32050505]
[1728170612606,3.2078,2414.6,2414.5,8.78579955]
[1728170612804,3.2078,2414.6,2414.5,9.31950645]
[1728170613510,1.19,2414.8,2414.7,0.33128]
[1728170613704,0.289,2415.0,2414.6,0.3907]
[1728170613906,3.2078,2414.9,2414.7,7.01485745]
[1728170614112,3.2078,2414.9,2414.8,0.86481505]
[1728170614406,3.2078,2414.9,2414.8,9.701926]
[1728170617707,3.2078,2414.9,2414.8,9.70071336]
[1728170618111,3.2078,2414.9,2414.8,9.16838095]
[1728170620513,1.19,2415.2,2414.8,8.83711095]
[1728170620714,3.6147,2415.1,2415.0,0.33123]
[1728170621112,3.6147,2415.1,2415.0,4.783815]
[1728170623914,0.4069,2415.1,2415.0,4.783815]
[1728170624216,3.6147,2415.1,2415.0,4.783815]
[1728170625511,4.0306,2415.1,2415.0,0.33123]
[1728170628317,0.8228,2415.1,2415.0,0.33123]
[1728170638426,4.0306,2415.1,2415.0,0.33123]
[1728170639417,0.8228,2415.1,2415.0,0.33123]
[1728170640621,0.8228,2415.1,2414.7,1.2046]
[1728170641028,0.8228,2415.1,2415.0,0.33124]
[1728170652630,3.6095,2415.3,2415.2,0.33121]
[1728170652631,3.2078,2415.3,2415.2,0.33121]
[1728170653026,3.2078,2415.3,2415.2,5.26089469]
[1728170654235,3.2078,2415.3,2415.2,5.77866076]
[1728170654529,3.2078,2415.3,2415.2,5.26168365]
[1728170654728,3.2078,2415.3,2415.2,5.77944838]
[1728170655432,3.2078,2415.3,2415.2,12.19585007]
[1728170655633,3.2078,2415.3,2415.2,15.59906645]
[1728170657328,3.2078,2415.3,2415.2,15.5993884]
[1728170657730,0.289,2415.5,2415.4,0.33119]
[1728170657926,3.4968,2415.8,2415.7,0.33115]
[1728170658131,3.2078,2415.8,2415.7,0.86532733]
[1728170659030,0.289,2416.1,2415.7,12.19044471]
[1728170659231,3.2078,2416.2,2415.9,2.27504634]
[1728170659531,3.2078,2416.2,2416.1,0.33109]
[1728170659740,3.2078,2416.2,2416.1,0.86526733]
[1728170660936,3.2078,2416.2,2416.1,1.52109]
[1728170661132,3.6105,2416.5,2416.3,0.33105]
[1728170661524,3.6105,2416.5,2416.4,0.3942]
[1728170662330,4.8005,2416.5,2416.4,0.3942]
[1728170662835,3.6105,2416.5,2416.4,0.3942]
[1728170663031,3.6105,2416.5,2416.4,0.72525]
[1728170663333,3.2078,2416.5,2416.4,1.91525]
[1728170663531,3.2078,2416.5,2416.4,10.51823742]
[1728170663732,3.2078,2416.5,2416.4,4.85878742]
[1728170664140,3.2078,2416.5,2416.4,8.99718742]
[1728170664636,3.2078,2416.5,2416.4,4.85878742]
[1728170664936,3.2078,2416.5,2416.4,9.32823742]
[1728170665135,3.2078,2416.5,2416.4,5.18983742]
[1728170665331,3.2078,2416.5,2416.4,4.85878742]
[1728170665533,3.5931,2416.5,2416.4,4.85878742]
[1728170667447,3.9813,2416.5,2416.4,4.85878742]
[1728170667737,3.9813,2416.5,2416.4,5.18983742]
[1728170674744,3.2078,2416.5,2416.4,5.18983742]
[1728170675948,4.0374,2416.5,2416.4,5.18983742]
[1728170692159,8.50684,2416.5,2416.4,4.46458742]
[1728170692363,8.50684,2416.5,2416.1,0.33108]
[1728170692364,0.33106,2416.4,2416.1,0.33108]
[1728170692863,0.33106,2416.4,2416.2,0.33108]
[1728170692864,0.4065,2416.3,2416.2,0.33108]
[1728170694558,6.06597,2416.3,2416.1,4.39194822]
[1728170694762,3.53888,2416.2,2415.8,0.192]
[1728170694957,0.8288,2416.1,2415.9,0.33111]
[1728170695258,0.8288,2416.1,2415.9,4.67532633]
[1728170695465,0.3897,2416.0,2415.9,4.67532633]
[1728170700275,0.3897,2416.0,2415.9,5.20836154]
[1728170701766,0.3897,2416.0,2415.9,5.20857798]
[1728170702360,0.3897,2416.0,2415.9,5.20875379]
[1728170703270,0.3897,2416.0,2415.9,4.87764379]
[1728170703470,6.05,2416.0,2415.9,4.87764379]
[1728170703670,6.05,2416.0,2415.5,0.94716]
[1728170703671,0.33114,2415.8,2415.5,0.94716]
[1728170703896,0.33114,2415.8,2415.6,0.53367101]
[1728170703897,4.4609,2415.7,2415.6,0.53367101]
[1728170704189,4.4609,2415.7,2415.6,5.56829466]
[1728170705589,1.2531,2415.7,2415.6,5.56812244]
[1728170705788,4.4609,2415.7,2415.6,5.56812244]
[1728170707294,4.4609,2415.7,2415.6,5.03462365]
[1728170707794,3.2078,2415.7,2415.6,5.03462365]
[1728170707985,3.2078,2415.7,2415.6,6.22462365]
[1728170717298,3.2078,2415.7,2415.6,5.03462365]
[1728170718404,0.4185,2415.8,2415.7,0.33115]
[1728170727607,3.6083,2415.9,2415.6,4.70346365]
[1728170727906,3.6083,2415.9,2415.8,0.33113]
[1728170728310,3.6083,2415.9,2415.8,1.16923]
[1728170730904,3.2078,2415.9,2415.8,1.16923]
[1728170733107,1.5838,2416.1,2415.9,0.33112]
[1728170733407,3.2078,2416.0,2415.9,0.33112]
[1728170734011,3.53891,2416.0,2415.8,0.75092]
[1728170734414,3.53891,2416.0,2415.8,0.4198]
[1728170734712,3.53891,2416.0,2415.9,0.33112]
[1728170735605,3.2078,2416.0,2415.9,0.33112]
[1728170738112,1.19,2416.0,2415.7,0.33113]
[1728170738309,0.33112,2415.9,2415.7,0.33113]
[1728170738518,0.3855,2415.8,2415.7,0.33113]
[1728170738713,0.7852,2415.8,2415.7,0.86508547]
[1728170748520,0.7852,2415.8,2415.7,0.33113]
[1728170748727,0.7852,2415.8,2415.7,0.86585672]
[1728170749426,0.7852,2415.8,2415.7,1.38354816]
[1728170751934,1.2128,2415.8,2415.7,1.38371822]
[1728170752135,1.2128,2415.8,2415.7,1.38371909]
[1728170755135,1.2128,2415.8,2415.7,0.84882231]
[1728170755337,1.2128,2415.8,2415.7,0.86602684]
[1728170755634,1.2128,2415.8,2415.7,1.38371789]
[1728170758630,1.2128,2415.8,2415.7,0.53489684]
[1728170758631,5.352,2415.8,2415.7,0.53489684]
[1728170759237,6.542,2415.8,2415.7,0.53489684]
[1728170759436,6.87313,2415.8,2415.7,0.53489684]
[1728170759840,5.352,2415.8,2415.7,0.53489684]
[1728170760242,5.352,2415.8,2415.7,0.94699684]
[1728170760441,0.3997,2415.8,2415.7,0.94699684]
[1728170760734,0.73083,2415.8,2415.7,0.53489684]
[1728170761040,0.73083,2415.8,2415.7,0.53492586]
[1728170761341,0.3997,2415.8,2415.7,0.53492586]
[1728170761542,0.3997,2415.8,2415.7,0.86607586]
[1728170763242,3.6075,2415.8,2415.7,0.86607586]
[1728170763631,0.3997,2415.8,2415.7,0.86607586]
[1728170764032,0.3997,2415.8,2415.7,0.53492586]
[1728170764245,3.6075,2415.8,2415.7,0.53492586]
[1728170764642,3.6075,2415.8,2415.7,0.95242586]
[1728170767238,3.6075,2415.8,2415.7,0.4175]
[1728170767444,0.3997,2415.8,2415.7,0.95234533]
[1728170767634,3.6075,2415.8,2415.7,0.95234533]
[1728170767840,3.6075,2415.8,2415.7,0.53484533]
[1728170767841,8.07783,2415.8,2415.7,0.53484533]
[1728170768438,9.26783,2415.8,2415.7,0.53484533]
[1728170768743,8.9367,2415.8,2415.3,2.11594634]
[1728170768951,3.2078,2415.4,2415.3,1.92394634]
[1728170769243,3.53899,2415.4,2415.3,1.8915629]
[1728170769444,3.92499,2415.4,2415.3,1.8915629]
[1728170769651,3.92499,2415.4,2415.3,1.37377579]
[1728170769848,3.5938,2415.4,2415.3,1.37377579]
[1728170770447,3.5938,2415.4,2415.3,0.8389]
[1728170770841,3.5938,2415.4,2415.3,1.37354038]
[1728170772041,0.386,2415.4,2415.3,1.37354038]
[1728170772449,0.71719,2415.4,2415.3,1.37354038]
[1728170773349,1.90719,2415.4,2415.3,0.95294038]
[1728170774646,1.576,2415.4,2415.3,0.95294038]
[1728170775046,1.90719,2415.4,2415.3,0.95294038]
[1728170776050,5.11499,2415.4,2415.3,0.95294038]
[1728170776350,5.11499,2415.4,2415.3,0.53464038]
[1728170776744,0.3312,2415.3,2415.1,1.54243]
[1728170776944,0.3312,2415.3,2415.2,0.53422694]
[1728170777246,4.7838,2415.4,2415.2,0.53422694]
[1728170777448,5.115,2415.4,2415.2,0.53422694]
[1728170777644,0.33123,2415.1,2414.8,1.41630634]
[1728170777844,0.4062,2415.0,2414.9,1.29080422]
[1728170778040,0.4062,2415.0,2414.9,5.66207214]
[1728170778349,0.4062,2415.0,2414.9,5.33082214]
[1728170778943,0.4062,2415.0,2414.9,4.90542214]
[1728170779252,0.33127,2414.9,2414.6,0.75669]
[1728170779450,1.5798,2414.8,2414.7,0.53387116]
[1728170779851,1.5798,2414.8,2414.6,0.7567]
[1728170780146,0.39,2414.7,2414.6,0.7567]
[1728170781748,0.39,2414.7,2414.6,1.29057163]
[1728170783557,0.39,2414.7,2414.6,0.95927163]
[1728170785753,0.39,2414.7,2414.6,0.4254]
[1728170785955,0.39,2414.7,2414.3,0.51671064]
[1728170786253,1.19,2414.6,2414.4,6.01850963]
[1728170786459,1.19,2414.6,2414.5,0.33131]
[1728170787360,1.19,2414.6,2414.4,6.34982963]
[1728170789357,1.19,2414.6,2414.4,6.01850963]
[1728170789560,1.19,2414.6,2414.5,0.33131]
[1728170791055,1.19,2414.6,2414.4,6.34982963]
[1728170792157,1.19,2414.6,2414.5,0.33131]
[1728170793264,1.52131,2414.6,2414.2,0.52334]
[1728170793459,4.0089,2414.7,2414.1,0.73465]
[1728170793460,1.52131,2414.5,2414.1,0.73465]
[1728170793653,0.8477,2414.4,2414.3,4.48995681]
[1728170793855,0.8477,2414.4,2414.1,0.73465]
[1728170793856,1.2426,2414.4,2414.2,4.48995681]
[1728170794056,0.965,2414.5,2414.3,0.33133]
[1728170794260,0.965,2414.5,2414.1,1.19]
[1728170794459,1.2295,2414.4,2414.2,5.22460681]
[1728170795564,1.2295,2414.4,2414.2,4.89325681]
[1728170795765,1.2295,2414.4,2414.2,5.22460681]
[1728170796062,1.2295,2414.4,2414.2,4.89325681]
[1728170796263,1.19,2414.3,2414.2,0.4033]
[1728170797965,1.19,2414.3,2414.2,0.73465]
[1728170798471,1.19,2414.3,2414.2,0.4033]
[1728170798862,1.19,2414.3,2414.2,0.73465]
[1728170804159,1.19,2414.3,2413.8,0.192]
[1728170804364,3.2078,2414.1,2413.9,0.75279]
[1728170804566,0.3989,2414.0,2413.9,5.0618884]
[1728170804762,0.3989,2414.0,2413.9,0.75279]
[1728170804963,1.19,2414.2,2414.0,0.33137]
[1728170805867,1.19,2414.2,2414.1,0.8047]
[1728170807073,0.964,2414.2,2414.1,1.13606]
[1728170808166,4.1718,2414.2,2414.1,1.13606]
[1728170808562,3.2078,2414.2,2414.1,1.13606]
[1728170810070,2.5529,2414.3,2414.1,1.13606]
[1728170810269,3.2078,2414.2,2414.1,0.33136]
[1728170810567,4.3978,2414.2,2413.9,0.33138]
[1728170810766,4.3978,2414.2,2414.0,0.3963]
[1728170811767,4.3978,2414.2,2414.0,0.72768]
[1728170812272,4.3978,2414.2,2414.0,0.3963]
[1728170812875,4.3978,2414.2,2414.0,0.72768]
[1728170813069,4.3978,2414.2,2414.0,0.3963]
[1728170813665,4.3978,2414.2,2414.0,0.72768]
[1728170814071,1.19,2414.2,2414.0,0.72768]
[1728170814571,4.3978,2414.2,2414.0,0.72768]
[1728170815076,4.3978,2414.2,2414.1,0.8154]
[1728170815572,1.19,2414.2,2414.1,0.8154]
[1728170815778,4.3978,2414.2,2414.1,0.8154]
[1728170816366,1.19,2414.2,2414.1,0.8154]
[1728170817580,4.3978,2414.2,2414.1,0.8154]
[1728170818381,1.19,2414.2,2414.1,0.8154]
[1728170818579,4.3978,2414.2,2414.1,0.8154]
[1728170819685,1.19,2414.2,2414.1,0.8154]
[1728170819889,4.3978,2414.2,2414.1,0.8154]
[1728170821484,1.19,2414.2,2414.1,0.8154]
[1728170821697,4.3978,2414.2,2414.1,0.8154]
[1728170824597,1.19,2414.2,2414.1,0.8154]
[1728170825095,4.3978,2414.2,2414.1,0.8154]
[1728170825491,1.19,2414.2,2414.1,0.8154]
[1728170825691,4.3978,2414.2,2414.1,0.8154]
[1728170826598,1.19,2414.2,2414.1,0.8154]
[1728170826992,4.3978,2414.2,2414.1,0.8154]
[1728170827397,1.19,2414.2,2414.1,0.8154]
[1728170827995,4.3978,2414.2,2414.1,0.8154]
[1728170829399,4.72915,2414.2,2414.1,0.8154]
[1728170831702,4.3978,2414.2,2414.1,0.8154]
[1728170831897,4.72915,2414.2,2414.1,0.8154]
[1728170834004,1.52135,2414.2,2414.1,0.8154]
[1728170834407,4.72915,2414.2,2414.1,0.8154]
[1728170834704,4.72915,2414.2,2414.0,0.3963]
[1728170835105,5.69215,2414.2,2414.0,0.3963]
[1728170835607,3.2078,2414.1,2414.0,0.3963]
[1728170835905,3.2078,2414.1,2414.0,0.93065072]
[1728170836105,2.48435,2414.2,2414.0,0.93065072]
[1728170836305,2.48435,2414.2,2414.0,0.3963]
[1728170836509,3.2078,2414.1,2414.0,0.3963]
[1728170836709,3.2078,2414.1,2414.0,0.93073912]
[1728170837205,2.48435,2414.2,2414.0,0.93073912]
[1728170837510,3.2078,2414.1,2414.0,0.3963]
[1728170837804,3.2078,2414.1,2414.0,1.2622235]
[1728170838509,2.48435,2414.2,2414.0,1.2622235]
[1728170838705,3.2078,2414.1,2414.0,0.72768]
[1728170838905,3.2078,2414.1,2414.0,1.26233143]
[1728170839905,3.2078,2414.1,2414.0,0.93095143]
[1728170841100,3.2078,2414.1,2414.0,0.93112275]
[1728170844409,3.2078,2414.1,2414.0,0.93122942]
[1728170845710,3.2078,2414.1,2414.0,1.26260942]
[1728170847211,3.2078,2414.1,2414.0,2.08320942]
[1728170849205,3.2078,2414.1,2414.0,1.54828]
[1728170849811,1.19,2414.2,2414.0,1.54828]
[1728170851014,4.3978,2414.2,2414.0,1.54828]
[1728170851910,4.3978,2414.2,2414.1,0.53511297]
[1728170852708,1.19,2414.2,2414.1,0.53511297]
[1728170852914,4.3978,2414.2,2414.1,0.53511297]
[1728170853611,1.19,2414.2,2414.1,0.53511297]